bitfinex-derivatives/quotes_ETHF0:USTF0_20250102
["timestamp","ask_amount","ask_price","bid_price","bid_amount"]
[1735828706638,0.28834,3471.8,3471.0,3.2078]
[1735828706835,1.1559,3472.5,3471.0,3.2078]
[1735828707134,1.1559,3472.5,3471.7,3.2078]
[1735828707532,3.2078,3472.7,3472.2,3.2078]
[1735828707935,3.2078,3472.7,3472.6,0.28827]
[1735828708138,3.2078,3472.7,3472.5,0.28827]
[1735828708337,3.2078,3472.7,3472.2,3.2078]
[1735828708338,3.2078,3472.7,3472.6,0.28827]
[1735828708839,0.2882,3473.4,3472.8,0.28824]
[1735828709045,1.1493,3473.7,3473.0,3.2078]
[1735828709240,0.28819,3473.5,3473.0,3.2078]
[1735828709429,1.1493,3473.7,3473.0,3.2078]
[1735828709731,0.28827,3472.6,3472.2,3.2078]
[1735828709941,0.72047,3473.6,3472.2,3.2078]
[1735828710126,1.1493,3473.7,3472.2,3.2078]
[1735828710329,0.28824,3473.0,3472.6,3.2078]
[1735828710532,6.1493,3473.7,3471.5,0.72088]
[1735828710533,0.28826,3472.7,3472.2,3.2078]
[1735828710730,3.2078,3473.4,3472.6,3.2078]
[1735828711138,0.28824,3473.0,3472.6,3.2078]
[1735828711331,1.1493,3473.7,3472.8,0.28825]
[1735828711530,0.2882,3473.4,3473.0,3.2078]
[1735828711730,1.1493,3473.7,3473.0,3.2078]
[1735828711934,1.1493,3473.7,3472.6,3.2078]
[1735828712738,0.28819,3473.5,3472.8,0.28825]
[1735828712934,0.2882,3473.4,3472.7,0.28825]
[1735828713134,1.1493,3473.7,3471.4,2.6779]
[1735828713135,1.1493,3473.7,3473.0,3.2078]
[1735828713334,3.49596,3473.9,3473.2,0.28821]
[1735828713838,3.2078,3473.9,3473.0,3.2078]
[1735828714143,3.49596,3473.9,3473.1,0.28822]
[1735828714330,4.4061,3474.5,3473.4,3.2078]
[1735828714537,4.4061,3474.5,3473.3,3.2078]
[1735828714734,0.7203,3474.4,3473.3,3.2078]
[1735828714938,0.2882,3473.4,3473.3,3.2078]
[1735828715127,0.7203,3474.4,3472.9,3.2078]
[1735828715128,3.2078,3473.7,3472.9,3.2078]
[1735828715333,0.28815,3474.0,3473.3,3.49601]
[1735828715533,0.28812,3474.4,3473.7,3.2078]
[1735828715833,1.1983,3474.5,3473.3,3.496]
[1735828716035,0.28815,3474.1,3473.3,3.496]
[1735828716235,0.28812,3474.4,3473.5,0.28819]
[1735828716443,1.48642,3474.5,3473.7,3.2078]
[1735828716740,1.1983,3474.5,3473.7,3.2078]
[1735828716933,3.2078,3474.6,3473.7,3.2078]
[1735828717441,1.1213,3475.2,3474.1,3.2078]
[1735828717736,1.1234,3475.3,3474.5,3.2078]
[1735828717937,1.1234,3475.3,3473.6,3.2078]
[1735828717938,3.2078,3474.9,3473.6,3.2078]
[1735828718135,6.1234,3475.3,3473.6,3.2078]
[1735828718136,4.3312,3475.3,3473.6,3.2078]
[1735828718337,3.2078,3474.9,3473.6,3.2078]
[1735828718634,0.28815,3474.1,3473.6,3.2078]
[1735828718835,3.2078,3474.5,3472.9,1.957]
[1735828718836,5.1648,3475.2,3474.0,3.2078]
[1735828719145,3.2078,3474.4,3473.4,3.2078]
[1735828719545,3.2078,3474.4,3473.4,3.496]
[1735828719840,3.2078,3474.5,3473.4,3.2078]
[1735828720233,0.28815,3474.1,3473.4,3.496]
[1735828720437,3.2078,3474.5,3473.4,3.2078]
[1735828720638,8.2078,3474.5,3473.4,3.2078]
[1735828720840,0.28821,3473.4,3473.0,3.2078]
[1735828721031,0.28819,3473.6,3473.0,3.49603]
[1735828721237,0.28819,3473.6,3473.0,3.2078]
[1735828721433,0.28822,3473.1,3473.0,3.2078]
[1735828721632,3.2078,3473.2,3472.4,3.2078]
[1735828722035,0.28826,3472.8,3472.4,3.2078]
[1735828722237,3.2078,3473.2,3472.4,3.2078]
[1735828722438,1.956,3474.1,3472.8,3.2078]
[1735828722938,3.2078,3474.2,3473.2,3.2078]
[1735828723139,0.28809,3474.8,3474.2,0.28813]
[1735828723340,3.2078,3474.9,3474.1,3.2078]
[1735828723541,3.2078,3474.4,3473.6,3.2078]
[1735828724146,3.2078,3474.4,3473.1,3.2078]
[1735828724147,0.28821,3473.3,3473.1,3.2078]
[1735828724444,0.28819,3473.6,3473.1,3.49602]
[1735828724645,1.956,3474.6,3473.1,3.2078]
[1735828724840,3.2078,3474.7,3473.9,3.2078]
[1735828725145,3.2078,3474.7,3474.3,0.28812]
[1735828725347,3.2078,3474.7,3473.9,3.2078]
[1735828725950,0.28807,3475.0,3474.5,0.2881]
[1735828726247,0.28809,3474.8,3474.3,3.49592]
[1735828726436,3.9279,3475.4,3474.3,3.2078]
[1735828726949,0.28808,3474.9,3474.4,0.28811]
[1735828727138,3.2078,3475.4,3474.6,0.28809]
[1735828727341,0.28805,3475.2,3474.7,3.2078]
[1735828727542,0.71985,3476.6,3475.4,0.28803]
[1735828727741,0.71985,3476.6,3475.1,3.2078]
[1735828727742,3.2078,3476.3,3475.3,3.2078]
[1735828727943,3.2078,3476.2,3475.3,3.2078]
[1735828728239,3.2078,3476.2,3474.8,3.49588]
[1735828728240,0.28804,3475.4,3474.8,3.49588]
[1735828728441,0.72003,3475.7,3474.8,3.2078]
[1735828728740,10.1038,3476.2,3475.2,3.2078]
[1735828728943,0.288,3475.8,3475.3,0.28804]
[1735828729142,6.896,3476.2,3475.2,3.2078]
[1735828729346,1.896,3476.2,3475.2,3.2078]
[1735828729653,3.2078,3475.9,3474.8,3.49588]
[1735828729948,3.2078,3475.9,3474.2,0.72033]
[1735828729949,3.2078,3475.9,3474.4,3.2078]
[1735828730137,3.2078,3475.8,3474.4,3.2078]
[1735828730340,3.2078,3475.8,3474.8,3.2078]
[1735828730536,3.2078,3475.4,3474.3,3.2078]
[1735828730738,0.28808,3474.8,3474.3,3.2078]
[1735828730940,3.2078,3475.4,3474.3,3.2078]
[1735828730941,0.28809,3474.7,3474.3,3.2078]
[1735828731245,3.2078,3475.0,3474.3,3.2078]
[1735828731448,0.28812,3474.4,3474.3,3.2078]
[1735828731752,3.2078,3475.0,3473.9,3.2078]
[1735828731941,3.2078,3475.0,3472.7,1.895]
[1735828731942,0.28806,3475.1,3474.3,3.2078]
[1735828732147,1.194,3475.2,3474.3,3.2078]
[1735828732350,3.2078,3475.4,3474.3,3.2078]
[1735828732649,0.28801,3475.7,3475.2,3.2078]
[1735828732843,0.28803,3475.5,3475.2,3.2078]
[1735828733042,3.2078,3475.4,3474.8,3.2078]
[1735828733251,0.28806,3475.1,3474.8,3.2078]
[1735828733445,0.28808,3474.9,3474.8,3.2078]
[1735828733642,0.28806,3475.1,3474.8,3.2078]
[1735828733838,3.2078,3475.4,3474.8,3.2078]
[1735828734039,3.2078,3475.0,3474.2,3.2078]
[1735828734548,0.2881,3474.7,3474.2,3.2078]
[1735828734745,5.72011,3475.3,3474.2,3.2078]
[1735828734943,4.44750907,3476.0,3475.0,3.2078]
[1735828735149,0.28803,3475.5,3475.0,3.2078]
[1735828735348,5.16747907,3476.0,3475.1,3.2078]
[1735828735550,0.72003,3475.7,3475.1,3.2078]
[1735828735751,0.28805,3475.2,3475.1,3.2078]
[1735828736447,0.72004,3475.7,3475.1,3.2078]
[1735828736753,0.28805,3475.2,3475.1,3.2078]
[1735828737247,0.28805,3475.2,3474.1,3.2078]
[1735828737248,5.0,3475.2,3474.1,3.2078]
[1735828737440,0.28811,3474.5,3473.9,0.28815]
[1735828737850,3.928,3474.9,3473.7,3.2078]
[1735828738244,0.28816,3473.9,3473.7,3.2078]
[1735828738449,8.2078,3474.9,3473.7,3.2078]
[1735828738450,0.28815,3474.0,3473.7,3.2078]
[1735828738648,3.2078,3474.9,3473.7,3.2078]
[1735828738848,0.28814,3474.2,3473.7,3.49597]
[1735828739048,0.28815,3474.1,3473.7,3.2078]
[1735828739244,8.2078,3474.9,3473.7,3.2078]
[1735828739547,0.28817,3473.8,3473.7,3.2078]
[1735828740449,1.00855,3474.0,3473.0,3.2078]
[1735828740749,3.2078,3474.1,3473.0,3.2078]
[1735828740945,0.28812,3474.4,3473.8,3.2078]
[1735828741143,5.63100907,3474.8,3474.2,3.2078]
[1735828741444,10.63100907,3474.8,3473.8,3.2078]
[1735828741748,3.2078,3474.7,3473.8,3.2078]
[1735828741952,1.47159,3474.8,3474.3,0.28812]
[1735828742155,3.92804,3474.7,3474.2,3.2078]
[1735828742452,3.2078,3474.7,3473.8,3.2078]
[1735828742747,0.28814,3474.2,3473.8,3.2078]
[1735828743151,0.7202,3474.9,3473.8,3.2078]
[1735828743346,5.0,3474.9,3473.8,3.2078]
[1735828743546,3.2078,3474.5,3473.8,3.2078]
[1735828743850,0.28816,3473.9,3473.8,3.2078]
[1735828744045,0.2882,3473.4,3473.3,3.2078]
[1735828744447,1.44053,3474.6,3472.9,3.2078]
[1735828744448,0.28824,3473.0,3472.9,3.2078]
[1735828744857,0.28822,3473.2,3472.9,3.2078]
[1735828745048,0.28823,3473.1,3472.9,3.2078]
[1735828745247,0.2882,3473.4,3472.9,3.49604]
[1735828745747,3.2078,3473.3,3472.5,3.2078]
[1735828745946,0.28827,3472.6,3472.5,3.2078]
[1735828746151,0.28825,3472.8,3472.5,3.2078]
[1735828746349,8.26066234,3473.8,3472.5,3.2078]
[1735828746350,3.2078,3473.7,3472.5,3.2078]
[1735828746549,0.28823,3473.1,3472.6,0.28826]
[1735828746843,3.2078,3473.7,3472.0,3.2078]
[1735828746844,3.2078,3472.9,3472.0,3.2078]
[1735828747456,1.834,3473.0,3472.0,3.2078]
[1735828747652,1.2106,3473.5,3472.4,3.2078]
[1735828747952,1.4988,3473.5,3472.9,0.28824]
[1735828748143,4.44750907,3473.7,3472.8,3.49605]
[1735828748343,9.44750907,3473.7,3472.8,3.2078]
[1735828748549,4.44750907,3473.0,3472.4,3.2078]
[1735828748851,4.44750907,3473.0,3472.8,3.49605]
[1735828749051,4.44750907,3473.0,3472.9,0.28824]
[1735828749252,4.44750907,3473.0,3472.8,3.2078]
[1735828749449,0.28824,3472.9,3472.8,3.2078]
[1735828749748,4.44750907,3473.7,3472.8,3.2078]
[1735828749951,4.44750907,3473.7,3472.3,3.2078]
[1735828749952,0.28825,3472.8,3472.3,3.2078]
[1735828750150,0.28825,3472.9,3472.3,3.2078]
[1735828750353,3.2078,3473.3,3472.4,0.28827]
[1735828750657,3.2078,3473.3,3472.3,3.2078]
[1735828750856,0.28825,3472.8,3472.4,0.28828]
[1735828751154,4.44750907,3473.5,3472.7,3.2078]
[1735828751352,4.73570907,3473.5,3473.1,3.49602]
[1735828751656,0.28819,3473.6,3473.1,3.2078]
[1735828751846,0.28819,3473.6,3473.1,3.49602]
[1735828752151,9.87906361,3474.3,3473.5,3.2078]
[1735828752358,0.28818,3473.6,3473.5,3.2078]
[1735828752651,0.7205,3473.5,3472.5,3.2078]
[1735828752852,3.2078,3472.9,3472.1,3.2078]
[1735828753154,0.28833,3471.9,3471.7,3.2078]
[1735828753448,3.2078,3472.5,3471.7,3.2078]
[1735828754053,0.2883,3472.2,3471.7,3.2078]
[1735828754356,5.63121401,3472.6,3472.5,0.28827]
[1735828754557,5.63121401,3472.6,3472.5,3.49607]
[1735828754756,3.2078,3474.1,3472.5,8.2078]
[1735828754947,10.00689542,3473.2,3472.6,3.2078]
[1735828755150,0.28826,3472.7,3472.6,3.2078]
[1735828755353,0.28824,3473.0,3472.6,3.49606]
[1735828755552,10.00689542,3473.2,3471.6,2.03902]
[1735828755553,0.28828,3472.5,3472.2,3.4961]
[1735828755855,0.28828,3472.5,3472.2,3.2078]
[1735828756054,4.50872938,3472.9,3471.6,3.41182]
[1735828756249,3.2078,3472.4,3471.6,3.41182]
[1735828756448,0.72074,3472.3,3471.6,3.41182]
[1735828756659,0.28834,3471.7,3471.6,0.20402]
[1735828756859,1.44142,3472.5,3471.6,0.20402]
[1735828756860,0.28833,3471.9,3471.6,0.20402]
[1735828757153,0.28832,3472.0,3471.6,0.49237]
[1735828757355,0.28832,3471.9,3471.6,0.20402]
[1735828757557,0.28832,3472.0,3471.6,0.49237]
[1735828757756,6.67126361,3472.2,3471.6,0.49237]
[1735828757757,0.28833,3471.8,3471.6,0.20402]
[1735828758058,6.67126361,3472.2,3471.6,0.20402]
[1735828758559,3.2078,3472.7,3471.6,0.20402]
[1735828758560,6.67126361,3472.7,3471.9,3.2078]
[1735828758756,3.92847,3472.6,3471.9,3.2078]
[1735828759062,0.28832,3472.0,3471.9,3.2078]
[1735828759246,3.92847,3472.6,3471.9,3.2078]
[1735828759560,3.2078,3472.5,3471.9,3.2078]
[1735828760058,0.2883,3472.3,3471.9,3.2078]
[1735828760259,0.28829,3472.3,3471.9,3.49612]
[1735828760751,0.28831,3472.1,3471.9,3.2078]
[1735828760954,0.28832,3472.0,3471.9,3.2078]
[1735828761258,0.28831,3472.1,3471.9,3.2078]
[1735828761554,0.28832,3472.0,3471.9,3.2078]
[1735828761952,0.28834,3471.7,3471.6,0.20402]
[1735828762150,3.49614,3471.7,3471.6,0.20402]
[1735828763054,0.72088,3471.6,3470.4,3.2078]
[1735828763362,0.28839,3471.1,3470.8,3.2078]
[1735828763562,0.28839,3471.2,3470.8,3.2078]
[1735828763861,3.2078,3471.7,3470.8,3.2078]
[1735828764157,0.28841,3470.9,3470.8,3.2078]
[1735828767454,4.4434,3471.4,3470.8,3.2078]
[1735828767760,0.28841,3470.9,3470.8,3.2078]
[1735828768155,2.4741,3471.6,3470.8,3.2078]
[1735828768358,1.00926,3471.5,3470.8,3.2078]
[1735828768553,0.28841,3470.9,3470.8,3.2078]
[1735828768958,8.2078,3470.9,3470.2,0.3422746]
[1735828769164,0.28846,3470.3,3470.2,0.3422746]
[1735828769462,0.28846,3470.4,3470.2,0.3422746]
[1735828769763,0.72098,3471.1,3470.2,0.3422746]
[1735828769959,0.28846,3470.3,3470.2,0.3422746]
[1735828770459,3.49626,3470.3,3470.2,0.3422746]
[1735828770861,8.2078,3470.3,3469.0,3.2078]
[1735828771054,0.28859,3468.7,3468.6,3.2078]
[1735828771462,0.72139,3469.2,3468.1,3.2078]
[1735828771463,0.2886,3468.6,3468.1,3.2078]
[1735828771658,3.49638,3468.9,3468.2,0.28863]
[1735828771855,3.49638,3468.9,3468.1,3.2078]
[1735828771856,3.2078,3468.9,3468.1,3.2078]
[1735828772061,0.72146,3468.8,3468.1,3.2078]
[1735828772264,0.28863,3468.2,3468.1,3.2078]
[1735828772560,0.28863,3468.2,3466.6,4.48136866]
[1735828772561,0.72155,3468.4,3467.4,3.2078]
[1735828772858,3.2078,3468.1,3467.0,3.2078]
[1735828773256,3.49641,3468.5,3467.4,3.2078]
[1735828773457,0.28862,3468.4,3467.8,3.49646]
[1735828773760,3.2078,3468.5,3467.8,3.2078]
[1735828774061,8.2078,3468.5,3467.8,3.2078]
[1735828774363,0.28868,3467.7,3467.3,3.2078]
[1735828774564,3.2078,3468.1,3467.3,3.2078]
[1735828774765,0.28869,3467.5,3467.3,3.2078]
[1735828775062,0.28868,3467.7,3467.3,3.2078]
[1735828775253,3.2078,3468.1,3467.3,3.2078]
[1735828775460,0.28868,3467.7,3467.3,3.2078]
[1735828775866,3.2078,3468.1,3467.3,3.2078]
[1735828776160,0.2887,3467.4,3467.3,3.2078]
[1735828776465,0.28869,3467.6,3467.3,3.2078]
[1735828776662,3.2078,3467.5,3466.7,3.2078]
[1735828776963,0.28872,3467.2,3466.7,3.2078]
[1735828777465,1.775,3468.0,3467.1,3.2078]
[1735828777660,0.28869,3467.5,3466.8,0.28875]
[1735828777869,0.28869,3467.5,3466.7,3.2078]
[1735828777870,3.2078,3468.0,3466.7,3.2078]
[1735828778164,0.28869,3467.5,3466.7,3.2078]
[1735828778565,0.2887,3467.4,3466.7,3.49655]
[1735828778766,3.2078,3467.6,3466.7,3.2078]
[1735828779167,0.28873,3467.1,3466.7,3.2078]
[1735828779465,8.2078,3467.6,3466.7,3.2078]
[1735828779674,0.28875,3466.8,3466.7,3.2078]
[1735828779868,3.2078,3466.8,3465.3,3.2078]
[1735828780070,3.2078,3466.1,3465.3,3.2078]
[1735828780368,3.2078,3466.1,3464.9,3.2078]
[1735828780663,8.2078,3466.1,3464.9,3.2078]
[1735828780872,0.28885,3465.6,3464.9,3.2078]
[1735828781168,3.2078,3466.1,3464.9,3.2078]
[1735828781169,8.2078,3466.1,3464.9,3.2078]
[1735828781371,8.2078,3466.1,3464.3,3.2078]
[1735828781372,3.2078,3465.5,3464.3,3.2078]
[1735828781559,3.2078,3465.1,3464.3,3.2078]
[1735828781867,3.49668,3465.2,3464.3,3.2078]
[1735828782064,3.2078,3465.2,3464.3,3.2078]
[1735828782366,0.28885,3465.6,3464.7,3.2078]
[1735828782558,1.775,3466.3,3465.1,3.2078]
[1735828782970,3.2078,3466.0,3465.1,3.2078]
[1735828783165,6.775,3466.3,3464.7,3.2078]
[1735828783367,3.2078,3466.0,3464.7,3.2078]
[1735828783560,0.28886,3465.5,3464.7,3.2078]
[1735828783772,3.2078,3465.8,3464.7,3.2078]
[1735828784164,0.2888,3466.2,3465.5,3.2078]
[1735828784364,0.2888,3466.2,3465.6,13.9]
[1735828784666,3.2078,3467.6,3465.9,3.2078]
[1735828784862,5.4876,3467.1,3465.9,3.2078]
[1735828785270,3.2078,3467.8,3466.5,3.2078]
[1735828785467,1.776,3467.7,3466.5,3.2078]
[1735828785662,7.216,3468.1,3467.0,3.2078]
[1735828785860,3.2078,3467.6,3467.0,3.2078]
[1735828786075,0.28867,3467.8,3467.0,3.49653]
[1735828786367,2.2598,3468.3,3467.4,3.2078]
[1735828786669,3.2078,3469.2,3468.3,0.28862]
[1735828786865,3.2078,3469.2,3468.2,3.2078]
[1735828787269,0.2886,3468.6,3468.2,3.2078]
[1735828787465,3.2078,3468.7,3468.2,3.2078]
[1735828787669,0.2886,3468.6,3468.2,3.2078]
[1735828788068,3.2078,3468.7,3468.2,3.2078]
[1735828788265,0.28861,3468.5,3468.2,3.2078]
[1735828788469,3.2078,3468.7,3468.2,3.2078]
[1735828788670,0.72135,3469.4,3468.2,3.2078]
[1735828788871,3.2078,3469.9,3468.6,3.2078]
[1735828789066,1.718,3470.1,3469.1,3.2078]
[1735828789468,2.2598,3470.3,3469.5,3.2078]
[1735828789966,1.1408,3471.0,3469.9,3.2078]
[1735828790275,1.718,3471.5,3470.5,3.2078]
[1735828790468,3.2078,3471.4,3470.1,3.2078]
[1735828790971,5.0,3471.4,3470.0,3.2078]
[1735828791379,0.28838,3471.3,3470.0,3.2078]
[1735828791572,0.28848,3470.0,3469.5,3.2078]
[1735828791773,3.2078,3470.3,3469.1,3.2078]
[1735828792274,0.28849,3469.9,3469.1,3.2078]
[1735828792481,3.2078,3470.3,3469.1,3.2078]
[1735828792667,8.2078,3470.3,3469.1,3.2078]
[1735828793576,8.2078,3470.3,3468.4,3.2078]
[1735828793577,0.28858,3468.9,3468.4,3.2078]
[1735828793773,3.2078,3469.2,3468.4,3.2078]
[1735828793972,0.28861,3468.5,3468.4,3.2078]
[1735828794768,3.2078,3468.5,3467.7,3.2078]
[1735828794975,0.28862,3468.4,3467.7,3.2078]
[1735828795176,3.2078,3468.5,3467.7,3.2078]
[1735828795682,0.28867,3467.8,3467.7,3.2078]
[1735828796179,3.2078,3468.1,3467.2,3.2078]
[1735828796378,0.28869,3467.6,3467.2,3.2078]
[1735828796574,0.2887,3467.4,3466.8,3.2078]
[1735828796775,3.2078,3468.1,3466.8,3.2078]
[1735828796776,3.2078,3467.7,3466.8,3.2078]
[1735828796984,5.0,3468.1,3466.2,3.2078]
[1735828796985,3.2078,3467.3,3466.2,3.2078]
[1735828797173,0.28882,3466.0,3465.7,3.2078]
[1735828797375,4.9248,3466.7,3465.7,3.2078]
[1735828797671,3.2078,3466.3,3465.7,3.2078]
[1735828797872,3.2078,3465.9,3464.8,3.2078]
[1735828798180,0.28892,3464.8,3464.0,0.28898]
[1735828798379,0.28895,3464.5,3463.9,3.2078]
[1735828798574,0.28892,3464.8,3463.9,3.49679]
[1735828798770,3.2078,3465.0,3463.9,3.2078]
[1735828799076,6.718,3465.4,3463.9,3.2078]
[1735828799077,0.28898,3464.0,3463.9,3.2078]
[1735828799283,3.2078,3464.6,3463.9,3.2078]
[1735828799284,0.28898,3464.1,3463.9,3.2078]
[1735828799477,3.2078,3464.6,3463.9,3.2078]
[1735828799876,0.28896,3464.3,3463.9,3.2078]
[1735828800072,4.9258,3465.4,3463.9,3.2078]
[1735828800372,0.28885,3465.6,3464.8,3.2078]
[1735828800688,0.28885,3465.6,3463.7,1.718]
[1735828800689,3.2078,3465.6,3464.3,3.2078]
[1735828800880,3.2078,3465.1,3464.3,3.2078]
[1735828801076,0.28893,3464.7,3464.3,3.2078]
[1735828801279,0.28894,3464.6,3463.9,3.2078]
[1735828801479,3.2078,3464.7,3463.9,3.49678]
[1735828801678,0.72215,3465.6,3464.3,3.2078]
[1735828801679,0.2889,3465.1,3464.3,3.2078]
[1735828801879,3.2078,3465.0,3464.3,3.2078]
[1735828802478,0.28892,3464.8,3464.3,3.2078]
[1735828802680,0.28893,3464.6,3464.3,3.2078]
[1735828802873,3.49671,3464.9,3464.3,3.2078]
[1735828803277,3.2078,3466.3,3464.7,3.2078]
[1735828803581,3.2078,3466.3,3465.5,3.2078]
[1735828803880,0.28886,3465.5,3464.9,3.2078]
[1735828804087,1.718,3466.1,3464.9,3.2078]
[1735828804279,3.2078,3465.5,3464.9,3.2078]
[1735828804477,0.28894,3464.5,3464.1,3.2078]
[1735828804691,0.28895,3464.5,3464.1,3.2078]
[1735828804883,3.2078,3465.1,3464.1,3.2078]
[1735828805082,0.72205,3466.0,3464.5,3.2078]
[1735828805083,0.28889,3465.2,3464.5,3.2078]
[1735828805291,0.28893,3464.6,3464.5,3.2078]
[1735828805586,3.2078,3464.7,3463.9,3.2078]
[1735828805788,0.28896,3464.4,3463.9,3.2078]
[1735828805986,1.718,3464.8,3464.1,0.28897]
[1735828806180,1.718,3464.8,3464.3,3.2078]
[1735828806381,4.399,3465.3,3464.3,3.2078]
[1735828806889,1.718,3465.6,3464.7,3.2078]
[1735828807081,1.1798,3465.7,3464.7,3.2078]
[1735828807281,3.2078,3466.3,3464.7,3.2078]
[1735828807282,0.2888,3466.2,3465.1,3.49668]
[1735828807486,3.2078,3466.3,3465.1,3.2078]
[1735828807788,0.28881,3466.1,3465.5,3.2078]
[1735828808187,3.2078,3466.7,3465.5,3.2078]
[1735828808486,1.1912,3467.5,3466.3,3.2078]
[1735828808694,0.2887,3467.4,3466.4,0.28878]
[1735828808989,0.28876,3466.7,3466.3,3.2078]
[1735828809189,3.2078,3467.1,3465.8,3.2078]
[1735828809380,0.28878,3466.5,3465.8,3.2078]
[1735828809684,4.9258,3467.1,3465.8,3.2078]
[1735828809685,0.2888,3466.2,3465.8,3.2078]
[1735828809991,0.2888,3466.2,3465.4,3.2078]
[1735828809992,3.2078,3466.2,3465.4,3.2078]
[1735828810183,0.28884,3465.8,3465.0,3.4967]
[1735828810487,3.2078,3466.3,3465.5,3.49665]
[1735828810686,0.28881,3466.1,3465.5,3.2078]
[1735828810986,0.28888,3465.2,3465.1,3.2078]
[1735828811182,0.72205,3466.0,3464.6,3.2078]
[1735828811183,3.2078,3465.4,3464.6,3.2078]
[1735828811693,0.28888,3465.3,3464.6,3.49673]
[1735828811884,1.2367,3465.9,3465.2,0.28888]
[1735828812185,1.2367,3465.9,3463.7,0.0797]
[1735828812186,0.72196,3466.4,3465.5,3.2078]
[1735828812488,3.2078,3466.1,3465.1,3.2078]
[1735828812785,0.2888,3466.2,3465.1,3.2078]
[1735828812992,3.2078,3466.7,3465.6,3.2078]
[1735828813196,0.28887,3465.4,3465.2,3.2078]
[1735828813394,0.28885,3465.6,3465.2,3.2078]
[1735828813686,3.2078,3466.2,3465.2,3.2078]
[1735828813991,0.28881,3466.1,3465.6,3.2078]
[1735828814186,0.28882,3466.0,3465.3,0.28887]
[1735828814487,3.2078,3466.6,3465.2,3.2078]
[1735828814792,0.28887,3465.3,3465.2,3.2078]
[1735828815092,1.718,3466.0,3465.2,3.2078]
[1735828815291,0.28887,3465.3,3465.2,3.2078]
[1735828815492,0.28891,3464.9,3464.8,3.2078]
[1735828815690,3.2078,3465.7,3464.8,3.2078]
[1735828816083,0.2889,3465.1,3464.8,3.2078]
[1735828816487,3.2078,3465.7,3464.8,3.2078]
[1735828816885,0.2889,3465.0,3464.8,3.2078]
[1735828817193,3.2078,3465.7,3464.8,3.2078]
[1735828817390,8.2078,3465.7,3464.8,3.2078]
[1735828817600,0.28892,3464.7,3464.4,3.2078]
[1735828817790,3.2078,3465.0,3464.4,3.2078]
[1735828818096,0.28891,3464.9,3464.4,3.2078]
[1735828818599,1.2313,3465.8,3464.8,3.2078]
[1735828818800,0.28887,3465.4,3464.8,3.49671]
[1735828819200,3.2078,3465.6,3464.8,3.2078]
[1735828819498,3.2078,3465.0,3464.3,3.2078]
[1735828819994,1.2313,3465.8,3464.7,3.2078]
[1735828820311,3.2078,3466.5,3465.5,3.2078]
[1735828820602,3.2078,3466.1,3465.1,3.2078]
[1735828820902,0.28892,3464.8,3464.7,3.2078]
[1735828821098,0.2889,3465.0,3464.7,3.2078]
[1735828821299,0.28896,3464.3,3463.8,3.2078]
[1735828821497,0.28892,3464.8,3464.3,0.28895]
[1735828821699,1.661,3465.0,3464.2,3.2078]
[1735828822099,1.661,3465.0,3464.3,0.28896]
[1735828822399,1.2148,3465.4,3464.2,3.2078]
[1735828822606,3.2078,3465.5,3464.6,3.2078]
[1735828822804,0.28883,3465.8,3465.4,3.2078]
[1735828823103,3.92978,3466.3,3465.4,3.2078]
[1735828823305,3.2078,3466.3,3465.0,3.2078]
[1735828823492,3.2078,3466.3,3464.6,0.72233]
[1735828823493,0.28884,3465.8,3465.4,3.2078]
[1735828823692,0.72195,3466.5,3465.0,3.2078]
[1735828823898,0.72195,3466.5,3465.5,0.28885]
[1735828824105,0.28878,3466.5,3466.0,0.28881]
[1735828824300,7.221,3467.8,3466.2,3.2078]
[1735828824602,7.221,3467.8,3467.4,3.2078]
[1735828824603,4.46108439,3467.8,3467.4,3.2078]
[1735828824908,4.46108439,3467.8,3467.4,8.2078]
[1735828825200,4.46108439,3467.8,3467.7,0.28867]
[1735828825201,3.46478439,3467.8,3467.7,0.28867]
[1735828825593,3.46478439,3469.5,3467.7,5.0]
[1735828825796,3.46478439,3469.5,3469.1,0.28856]
[1735828825993,0.28856,3469.1,3469.0,3.2078]
[1735828826298,0.28856,3469.1,3468.6,0.2886]
[1735828826500,3.46478439,3469.5,3468.5,3.2078]
[1735828827004,2.4088,3470.0,3469.3,3.2078]
[1735828827300,1.66,3470.8,3469.7,3.2078]
[1735828827505,0.2885,3469.8,3469.7,3.2078]
[1735828827799,0.2885,3469.8,3468.0,0.72162]
[1735828827800,0.2885,3469.8,3469.1,3.2078]
[1735828828003,1.66,3470.5,3469.5,3.2078]
[1735828828201,1.223,3470.6,3469.9,3.2078]
[1735828828393,0.28845,3470.4,3469.9,3.2078]
[1735828828600,1.223,3470.6,3469.9,3.2078]
[1735828829103,0.2885,3469.9,3469.4,3.2078]
[1735828829301,6.223,3470.6,3469.4,3.2078]
[1735828829501,3.2078,3470.5,3469.4,3.2078]
[1735828829695,6.223,3470.6,3469.4,3.2078]
[1735828829696,3.2078,3470.1,3469.4,3.2078]
[1735828829905,3.2078,3469.7,3469.0,3.2078]
[1735828830198,1.66,3470.4,3469.0,3.2078]
[1735828830398,1.66,3470.4,3469.7,0.28851]
[1735828830602,0.28843,3470.7,3470.2,3.2078]
[1735828830800,3.2078,3470.8,3469.8,3.2078]
[1735828831202,0.28844,3470.6,3469.8,3.2078]
[1735828831407,1.2628,3471.1,3470.2,3.2078]
[1735828831709,1.4692,3471.0,3470.6,3.2078]